[Event "Early-Titled-Tuesday-Blitz-January-16-2024"]
[Site "Chess.com"]
[Date "2024.01.16"]
[Round "7"]
[White "wonderfultime"]
[Black "platy3"]
[Result "1-0"]
[WhiteElo "3001"]
[BlackElo "2891"]
[TimeControl "180+1"]
[EndTime "9:22:14 PST"]
[Termination "wonderfultime won by resignation"]

1. d4 {[%clk 0:02:57.2]} 1... Nf6 {[%clk 0:03:00.6]} 2. Nf3 {[%clk 0:02:53]}
2... d5 {[%clk 0:03:00.8]} 3. Bf4 {[%clk 0:02:48.2]} 3... c5 {[%clk 0:03:00.9]}
4. c3 {[%clk 0:02:48.4]} 4... Qb6 {[%clk 0:02:57.9]} 5. Qc2 {[%clk 0:02:42.4]}
5... Nc6 {[%clk 0:02:57]} 6. e3 {[%clk 0:02:42.6]} 6... cxd4 {[%clk 0:02:55.3]}
7. exd4 {[%clk 0:02:41.5]} 7... Bg4 {[%clk 0:02:47.8]} 8. Nbd2 {[%clk
0:02:36.1]} 8... Rc8 {[%clk 0:02:43.9]} 9. Bd3 {[%clk 0:02:29.7]} 9... e6 {[%clk
0:02:36.3]} 10. Qb3 {[%clk 0:02:26.1]} 10... Be7 {[%clk 0:02:29.8]} 11. O-O
{[%clk 0:02:26.4]} 11... O-O {[%clk 0:02:29.5]} 12. Rfe1 {[%clk 0:02:27.2]}
12... Nd7 {[%clk 0:02:25.5]} 13. Re3 {[%clk 0:02:12.8]} 13... Bh5 {[%clk
0:02:24.1]} 14. Rae1 {[%clk 0:02:08.6]} 14... Bg6 {[%clk 0:02:23.6]} 15. Bxg6
{[%clk 0:02:06.7]} 15... hxg6 {[%clk 0:02:24.5]} 16. h4 {[%clk 0:01:53.3]} 16...
Qxb3 {[%clk 0:02:23.6]} 17. axb3 {[%clk 0:01:52]} 17... a5 {[%clk 0:02:22]} 18.
Ng5 {[%clk 0:01:36.1]} 18... Rfe8 {[%clk 0:02:10.4]} 19. Rh3 {[%clk 0:01:34.4]}
19... b5 {[%clk 0:02:07.6]} 20. h5 {[%clk 0:01:30.3]} 20... gxh5 {[%clk
0:02:03.7]} 21. Rxh5 {[%clk 0:01:31.2]} 21... b4 {[%clk 0:01:58.1]} 22. Rh3
{[%clk 0:01:13.5]} 22... Nb6 {[%clk 0:01:43.8]} 23. g4 {[%clk 0:01:08.8]} 23...
a4 {[%clk 0:01:32.6]} 24. Kg2 {[%clk 0:01:00.2]} 24... Bxg5 {[%clk 0:01:31.3]}
25. Bxg5 {[%clk 0:01:00.4]} 25... f6 {[%clk 0:01:16.9]} 26. Bf4 {[%clk
0:00:56.6]} 26... e5 {[%clk 0:00:43.4]} 27. dxe5 {[%clk 0:00:56.3]} 27... fxe5
{[%clk 0:00:44.3]} 28. Bg5 {[%clk 0:00:50.3]} 28... axb3 {[%clk 0:00:39.9]} 29.
Nxb3 {[%clk 0:00:50.3]} 29... Nc4 {[%clk 0:00:40.3]} 30. Bc1 {[%clk 0:00:44.9]}
30... Rb8 {[%clk 0:00:39.5]} 31. Nc5 {[%clk 0:00:44.6]} 31... bxc3 {[%clk
0:00:37.8]} 32. bxc3 {[%clk 0:00:45.5]} 32... Rb1 {[%clk 0:00:37.7]} 33. Reh1
{[%clk 0:00:42.3]} 33... e4 {[%clk 0:00:26.2]} 34. Na6 {[%clk 0:00:29.6]} 34...
Kf7 {[%clk 0:00:21]} 35. Nc7 {[%clk 0:00:26.5]} 35... Rd8 {[%clk 0:00:21.2]} 36.
Rh5 {[%clk 0:00:26.5]} 36... N6e5 {[%clk 0:00:19.7]} 37. Rf5+ {[%clk 0:00:26.8]}
37... Kg8 {[%clk 0:00:18.4]} 38. Ne6 {[%clk 0:00:24.9]} 38... Re8 {[%clk
0:00:18.9]} 39. Nf4 {[%clk 0:00:25.3]} 39... Nd3 {[%clk 0:00:17.1]} 40. Ng6
{[%clk 0:00:25.1]} 1-0

[Event "Early-Titled-Tuesday-Blitz-January-16-2024"]
[Site "Chess.com"]
[Date "2024.01.16"]
[Round "7"]
[White "Witik"]
[Black "hongnhung1234"]
[Result "1-0"]
[WhiteElo "2770"]
[BlackElo "2574"]
[TimeControl "180+1"]
[EndTime "9:22:14 PST"]
[Termination "Witik won by resignation"]

1. d4 {[%clk 0:02:58.6]} 1... f5 {[%clk 0:02:58.1]} 2. g3 {[%clk 0:02:55.2]}
2... Nf6 {[%clk 0:02:58.1]} 3. Bg2 {[%clk 0:02:55.3]} 3... g6 {[%clk 0:02:58.4]}
4. Nd2 {[%clk 0:02:55.2]} 4... d6 {[%clk 0:02:55.3]} 5. e4 {[%clk 0:02:54.6]}
5... fxe4 {[%clk 0:02:54]} 6. Nxe4 {[%clk 0:02:54.6]} 6... Bg7 {[%clk
0:02:53.7]} 7. Ne2 {[%clk 0:02:54.3]} 7... O-O {[%clk 0:02:50.9]} 8. Nxf6+
{[%clk 0:02:50.8]} 8... Bxf6 {[%clk 0:02:50.7]} 9. O-O {[%clk 0:02:51.2]} 9...
Nc6 {[%clk 0:02:50.3]} 10. Bh6 {[%clk 0:02:38.4]} 10... Bg7 {[%clk 0:02:43.9]}
11. Bxg7 {[%clk 0:02:36.9]} 11... Kxg7 {[%clk 0:02:44.8]} 12. d5 {[%clk
0:02:20.4]} 12... Ne5 {[%clk 0:02:43.7]} 13. f4 {[%clk 0:02:17.8]} 13... Ng4
{[%clk 0:02:39.6]} 14. h3 {[%clk 0:02:10.1]} 14... Nf6 {[%clk 0:02:38.1]} 15.
Nd4 {[%clk 0:02:04.2]} 15... Qe8 {[%clk 0:02:21.7]} 16. Qd3 {[%clk 0:01:57.1]}
16... Qf7 {[%clk 0:02:19.1]} 17. c4 {[%clk 0:01:48.5]} 17... e6 {[%clk
0:02:06.6]} 18. Rae1 {[%clk 0:01:28.6]} 18... exd5 {[%clk 0:01:59.6]} 19. cxd5
{[%clk 0:01:29.5]} 19... Rb8 {[%clk 0:01:31.4]} 20. f5 {[%clk 0:01:20]} 20...
gxf5 {[%clk 0:01:19.7]} 21. Ne6+ {[%clk 0:01:11.2]} 21... Bxe6 {[%clk
0:01:19.8]} 22. dxe6 {[%clk 0:01:04.4]} 22... Qe7 {[%clk 0:01:18.7]} 23. Rxf5
{[%clk 0:01:01.6]} 23... Kh8 {[%clk 0:01:13.5]} 24. Qc3 {[%clk 0:00:55.9]} 24...
Rbe8 {[%clk 0:01:04.4]} 25. Ref1 {[%clk 0:00:55.2]} 25... Kg7 {[%clk 0:00:54.8]}
26. g4 {[%clk 0:00:52.9]} 26... h6 {[%clk 0:00:53.5]} 27. g5 {[%clk 0:00:34.9]}
27... hxg5 {[%clk 0:00:51.9]} 28. Rxg5+ {[%clk 0:00:35.8]} 28... Kh7 {[%clk
0:00:35.1]} 29. Qg3 {[%clk 0:00:32.9]} 29... Kh8 {[%clk 0:00:26.2]} 30. Be4
{[%clk 0:00:22.7]} 30... Rg8 {[%clk 0:00:13.2]} 31. Rxf6 {[%clk 0:00:11.6]}
31... Qxf6 {[%clk 0:00:08.7]} 32. Qh4+ {[%clk 0:00:09.6]} 1-0

[Event "Early-Titled-Tuesday-Blitz-January-16-2024"]
[Site "Chess.com"]
[Date "2024.01.16"]
[Round "7"]
[White "Firouzja2003"]
[Black "Polish_fighter3000"]
[Result "1-0"]
[WhiteElo "3175"]
[BlackElo "3078"]
[TimeControl "180+1"]
[EndTime "9:22:15 PST"]
[Termination "Firouzja2003 won by resignation"]

1. e4 {[%clk 0:03:00.9]} 1... e5 {[%clk 0:02:59.8]} 2. Nf3 {[%clk 0:03:01.1]}
2... Nc6 {[%clk 0:03:00.5]} 3. Bb5 {[%clk 0:03:01.5]} 3... Nf6 {[%clk
0:03:00.5]} 4. d3 {[%clk 0:03:01.7]} 4... Bc5 {[%clk 0:02:59.5]} 5. Nc3 {[%clk
0:02:59.6]} 5... d6 {[%clk 0:02:55.6]} 6. Na4 {[%clk 0:02:55]} 6... Bb6 {[%clk
0:02:55.7]} 7. c3 {[%clk 0:02:54.1]} 7... O-O {[%clk 0:02:54]} 8. O-O {[%clk
0:02:54.4]} 8... Ne7 {[%clk 0:02:53]} 9. Nxb6 {[%clk 0:02:48.8]} 9... axb6
{[%clk 0:02:53.9]} 10. Re1 {[%clk 0:02:45.5]} 10... Bd7 {[%clk 0:02:44.4]} 11.
Bc4 {[%clk 0:02:39.6]} 11... Ba4 {[%clk 0:02:35.2]} 12. b3 {[%clk 0:02:32.2]}
12... Bc6 {[%clk 0:02:35.3]} 13. d4 {[%clk 0:01:57]} 13... exd4 {[%clk
0:02:12.4]} 14. Nxd4 {[%clk 0:01:55.1]} 14... Bxe4 {[%clk 0:02:11.7]} 15. Bg5
{[%clk 0:01:54.6]} 15... d5 {[%clk 0:02:08.8]} 16. Bf1 {[%clk 0:01:43.4]} 16...
c5 {[%clk 0:01:55.6]} 17. Nb5 {[%clk 0:01:39.2]} 17... Nc6 {[%clk 0:01:40.2]}
18. f3 {[%clk 0:01:33.5]} 18... Bf5 {[%clk 0:01:39.9]} 19. Qd2 {[%clk
0:01:30.1]} 19... Qd7 {[%clk 0:01:15.9]} 20. Rad1 {[%clk 0:01:11.1]} 20... Rfe8
{[%clk 0:01:07.7]} 21. Rxe8+ {[%clk 0:01:04]} 21... Rxe8 {[%clk 0:01:08.6]} 22.
Bxf6 {[%clk 0:01:00]} 22... gxf6 {[%clk 0:01:09.5]} 23. Qxd5 {[%clk 0:00:57.3]}
23... Qxd5 {[%clk 0:01:01.6]} 24. Rxd5 {[%clk 0:00:58.2]} 24... Be6 {[%clk
0:01:02.3]} 25. Rd2 {[%clk 0:00:54.1]} 25... Rd8 {[%clk 0:00:59.8]} 26. Rxd8+
{[%clk 0:00:49.2]} 26... Nxd8 {[%clk 0:01:00.7]} 27. Bd3 {[%clk 0:00:47.7]}
27... h6 {[%clk 0:00:59.8]} 28. Nd6 {[%clk 0:00:45]} 28... Kf8 {[%clk 0:00:48]}
29. Be4 {[%clk 0:00:44.6]} 29... Ke7 {[%clk 0:00:37.8]} 30. Nxb7 {[%clk
0:00:41.5]} 30... Nxb7 {[%clk 0:00:38.3]} 31. Bxb7 {[%clk 0:00:42.1]} 31... b5
{[%clk 0:00:39]} 32. Kf2 {[%clk 0:00:36.1]} 32... b4 {[%clk 0:00:39.5]} 33. cxb4
{[%clk 0:00:34.2]} 33... cxb4 {[%clk 0:00:40.4]} 34. Ke3 {[%clk 0:00:34.6]}
34... Kd6 {[%clk 0:00:36.2]} 35. Kd4 {[%clk 0:00:34.7]} 35... f5 {[%clk
0:00:36.4]} 36. f4 {[%clk 0:00:32.4]} 36... f6 {[%clk 0:00:36.5]} 37. g3 {[%clk
0:00:32.3]} 37... Bf7 {[%clk 0:00:15.5]} 38. Bc8 {[%clk 0:00:31.7]} 38... Bd5
{[%clk 0:00:15.7]} 39. Bxf5 {[%clk 0:00:30.9]} 39... Bf7 {[%clk 0:00:16.4]} 40.
g4 {[%clk 0:00:29.2]} 40... Bd5 {[%clk 0:00:16.8]} 41. h4 {[%clk 0:00:29.2]}
41... Bf7 {[%clk 0:00:17.4]} 42. g5 {[%clk 0:00:28.4]} 42... fxg5 {[%clk
0:00:18.3]} 43. fxg5 {[%clk 0:00:28.5]} 43... hxg5 {[%clk 0:00:19.2]} 44. hxg5
{[%clk 0:00:29.4]} 44... Bg8 {[%clk 0:00:18.9]} 45. g6 {[%clk 0:00:27.3]} 45...
Bd5 {[%clk 0:00:15.7]} 46. g7 {[%clk 0:00:25.4]} 1-0

[Event "Early-Titled-Tuesday-Blitz-January-16-2024"]
[Site "Chess.com"]
[Date "2024.01.16"]
[Round "7"]
[White "elchacal664"]
[Black "Mikhail_Golubev"]
[Result "0-1"]
[WhiteElo "2362"]
[BlackElo "2528"]
[TimeControl "180+1"]
[EndTime "9:22:16 PST"]
[Termination "Mikhail_Golubev won by resignation"]

1. e4 {[%clk 0:03:00.9]} 1... c5 {[%clk 0:02:59.4]} 2. Nc3 {[%clk 0:03:01.4]}
2... e6 {[%clk 0:02:57.8]} 3. g3 {[%clk 0:02:59.8]} 3... Nc6 {[%clk 0:02:56.5]}
4. Bg2 {[%clk 0:03:00.3]} 4... g6 {[%clk 0:02:54.7]} 5. Nge2 {[%clk 0:03:00.7]}
5... Bg7 {[%clk 0:02:51.4]} 6. O-O {[%clk 0:03:01.6]} 6... a6 {[%clk 0:02:29.5]}
7. a4 {[%clk 0:02:59.5]} 7... Nge7 {[%clk 0:02:27.9]} 8. f4 {[%clk 0:02:56.7]}
8... d5 {[%clk 0:02:21.9]} 9. d3 {[%clk 0:02:52.6]} 9... d4 {[%clk 0:02:14.4]}
10. Nb1 {[%clk 0:02:45.4]} 10... O-O {[%clk 0:02:10.9]} 11. Nd2 {[%clk
0:02:42.9]} 11... e5 {[%clk 0:02:10.9]} 12. Nc4 {[%clk 0:02:31.6]} 12... Be6
{[%clk 0:02:08.4]} 13. b3 {[%clk 0:02:23.4]} 13... b5 {[%clk 0:01:41.5]} 14. f5
{[%clk 0:02:06.8]} 14... gxf5 {[%clk 0:01:24.3]} 15. exf5 {[%clk 0:02:05.1]}
15... Bxf5 {[%clk 0:01:21.1]} 16. Nd2 {[%clk 0:01:35.8]} 16... Rc8 {[%clk
0:01:14.1]} 17. axb5 {[%clk 0:01:33.7]} 17... axb5 {[%clk 0:01:13.8]} 18. Ne4
{[%clk 0:01:31.1]} 18... Bg6 {[%clk 0:00:57.6]} 19. g4 {[%clk 0:01:26.4]} 19...
Nd5 {[%clk 0:00:50.4]} 20. N2g3 {[%clk 0:01:21.5]} 20... Nc3 {[%clk 0:00:44.1]}
21. Nxc3 {[%clk 0:01:18.6]} 21... dxc3 {[%clk 0:00:45]} 22. Ra6 {[%clk
0:01:02.6]} 22... Nd4 {[%clk 0:00:42.7]} 23. g5 {[%clk 0:00:52.7]} 23... c4
{[%clk 0:00:32.8]} 24. dxc4 {[%clk 0:00:47.3]} 24... Bxc2 {[%clk 0:00:31.3]} 25.
Qg4 {[%clk 0:00:42.7]} 25... Nxb3 {[%clk 0:00:20.9]} 26. Ba3 {[%clk 0:00:26.1]}
26... Rxc4 {[%clk 0:00:18.4]} 27. Qf3 {[%clk 0:00:17.1]} 27... Nd2 {[%clk
0:00:15.1]} 28. Qf2 {[%clk 0:00:11.4]} 28... Nxf1 {[%clk 0:00:15.2]} 29. Nxf1
{[%clk 0:00:07.2]} 29... b4 {[%clk 0:00:14.6]} 30. Qxc2 {[%clk 0:00:06.3]} 30...
bxa3 {[%clk 0:00:12.8]} 31. Be4 {[%clk 0:00:05.1]} 31... Qd4+ {[%clk 0:00:12.5]}
32. Kg2 {[%clk 0:00:04.7]} 32... Qxe4+ {[%clk 0:00:12.9]} 33. Qxe4 {[%clk
0:00:03.9]} 33... Rxe4 {[%clk 0:00:13.8]} 0-1

[Event "Early-Titled-Tuesday-Blitz-January-16-2024"]
[Site "Chess.com"]
[Date "2024.01.16"]
[Round "7"]
[White "lilylg"]
[Black "NovakRatko"]
[Result "1-0"]
[WhiteElo "2116"]
[BlackElo "2303"]
[TimeControl "180+1"]
[EndTime "9:22:16 PST"]
[Termination "lilylg won on time"]

1. d4 {[%clk 0:03:00.9]} 1... d5 {[%clk 0:02:59.8]} 2. c4 {[%clk 0:03:01]} 2...
c5 {[%clk 0:02:59.8]} 3. cxd5 {[%clk 0:02:55.7]} 3... Qxd5 {[%clk 0:03:00]} 4.
Nf3 {[%clk 0:02:55.7]} 4... cxd4 {[%clk 0:02:59.9]} 5. Qxd4 {[%clk 0:02:55.4]}
5... Qxd4 {[%clk 0:02:58.8]} 6. Nxd4 {[%clk 0:02:56.3]} 6... a6 {[%clk
0:02:59.4]} 7. Nc3 {[%clk 0:02:55.7]} 7... e5 {[%clk 0:02:59.4]} 8. Nf3 {[%clk
0:02:55]} 8... f6 {[%clk 0:02:59.3]} 9. e4 {[%clk 0:02:55.1]} 9... Nc6 {[%clk
0:02:58.2]} 10. Be3 {[%clk 0:02:52.8]} 10... Bb4 {[%clk 0:02:57.9]} 11. Bd3
{[%clk 0:02:49]} 11... Be6 {[%clk 0:02:56.4]} 12. O-O {[%clk 0:02:46.1]} 12...
O-O-O {[%clk 0:02:56.3]} 13. Rfd1 {[%clk 0:02:44.4]} 13... Nge7 {[%clk
0:02:30.4]} 14. Kf1 {[%clk 0:02:43.8]} 14... Rd7 {[%clk 0:02:23.8]} 15. Na4
{[%clk 0:02:31.8]} 15... Rxd3 {[%clk 0:02:19.8]} 16. Rxd3 {[%clk 0:02:29.9]}
16... b5 {[%clk 0:02:18.3]} 17. Nb6+ {[%clk 0:02:28.1]} 17... Kc7 {[%clk
0:02:18.4]} 18. Rc1 {[%clk 0:02:10.7]} 18... Kb7 {[%clk 0:02:04.3]} 19. Nd5
{[%clk 0:02:06.6]} 19... Rd8 {[%clk 0:02:00.6]} 20. Nxb4 {[%clk 0:01:39.1]}
20... Bc4 {[%clk 0:01:59.4]} 21. Rxc4 {[%clk 0:01:33.3]} 21... bxc4 {[%clk
0:01:54.3]} 22. Rxd8 {[%clk 0:01:32.3]} 22... Nxd8 {[%clk 0:01:52.7]} 23. Nd2
{[%clk 0:01:30.7]} 23... a5 {[%clk 0:01:18.3]} 24. Nc2 {[%clk 0:01:30.2]} 24...
Kc7 {[%clk 0:01:10.6]} 25. Nxc4 {[%clk 0:01:30.1]} 25... Ndc6 {[%clk 0:01:02.6]}
26. Ke1 {[%clk 0:01:24.6]} 26... g6 {[%clk 0:00:51]} 27. b3 {[%clk 0:01:22]}
27... Kb7 {[%clk 0:00:51]} 28. a3 {[%clk 0:01:21.5]} 28... Ka6 {[%clk
0:00:51.2]} 29. Kd2 {[%clk 0:01:12.3]} 29... Kb5 {[%clk 0:00:51.1]} 30. Nd6+
{[%clk 0:01:12.4]} 30... Ka6 {[%clk 0:00:50.6]} 31. b4 {[%clk 0:01:10.1]} 31...
axb4 {[%clk 0:00:28.5]} 32. axb4 {[%clk 0:01:11]} 32... Nd8 {[%clk 0:00:27.4]}
33. Kc3 {[%clk 0:01:03.5]} 33... Ne6 {[%clk 0:00:24.7]} 34. b5+ {[%clk
0:00:50.4]} 34... Ka5 {[%clk 0:00:24.6]} 35. b6 {[%clk 0:00:50.7]} 35... Nc6
{[%clk 0:00:24.1]} 36. b7 {[%clk 0:00:47.9]} 36... f5 {[%clk 0:00:24]} 37. Nb4
{[%clk 0:00:41.5]} 37... Ned8 {[%clk 0:00:11.5]} 38. Nxc6+ {[%clk 0:00:39.7]}
38... Nxc6 {[%clk 0:00:11.5]} 39. f3 {[%clk 0:00:39.8]} 39... Ka6 {[%clk
0:00:09.2]} 40. Kc4 {[%clk 0:00:38.5]} 40... f4 {[%clk 0:00:05.7]} 41. Bf2
{[%clk 0:00:38.1]} 41... Na5+ {[%clk 0:00:06.1]} 42. Kd5 {[%clk 0:00:37]} 42...
Nb3 {[%clk 0:00:01.5]} 43. b8=Q {[%clk 0:00:36]} 1-0

[Event "Early-Titled-Tuesday-Blitz-January-16-2024"]
[Site "Chess.com"]
[Date "2024.01.16"]
[Round "7"]
[White "viktorskliarov"]
[Black "Alimpic"]
[Result "1-0"]
[WhiteElo "2664"]
[BlackElo "2502"]
[TimeControl "180+1"]
[EndTime "9:22:17 PST"]
[Termination "viktorskliarov won on time"]

1. e4 {[%clk 0:03:00.9]} 1... c5 {[%clk 0:03:00.3]} 2. Nf3 {[%clk 0:03:00.9]}
2... d6 {[%clk 0:03:00.7]} 3. d4 {[%clk 0:03:01.3]} 3... cxd4 {[%clk 0:03:01.6]}
4. Qxd4 {[%clk 0:03:01.8]} 4... Nf6 {[%clk 0:03:00.9]} 5. Nc3 {[%clk 0:03:01.8]}
5... Nc6 {[%clk 0:03:01.3]} 6. Bb5 {[%clk 0:03:02]} 6... Bd7 {[%clk 0:03:02]} 7.
Bxc6 {[%clk 0:03:02.6]} 7... Bxc6 {[%clk 0:03:02.9]} 8. Bg5 {[%clk 0:03:02.9]}
8... e6 {[%clk 0:03:03.2]} 9. O-O-O {[%clk 0:03:03.2]} 9... Be7 {[%clk
0:03:03.9]} 10. Rhe1 {[%clk 0:03:03.7]} 10... O-O {[%clk 0:03:03.9]} 11. Kb1
{[%clk 0:03:04.1]} 11... a6 {[%clk 0:02:57.8]} 12. e5 {[%clk 0:02:47.6]} 12...
dxe5 {[%clk 0:02:47.2]} 13. Qh4 {[%clk 0:02:47.5]} 13... Qc7 {[%clk 0:02:39]}
14. Nxe5 {[%clk 0:02:46.8]} 14... h6 {[%clk 0:02:33.6]} 15. Bxh6 {[%clk
0:02:44.7]} 15... gxh6 {[%clk 0:02:15.2]} 16. Qxh6 {[%clk 0:02:43.3]} 16... Rfd8
{[%clk 0:01:55.4]} 17. Re3 {[%clk 0:02:34.8]} 17... Rxd1+ {[%clk 0:01:54.2]} 18.
Nxd1 {[%clk 0:02:34.8]} 18... Ne4 {[%clk 0:01:49.2]} 19. Qh5 {[%clk 0:01:09.5]}
19... Bf6 {[%clk 0:00:56.9]} 20. Nxc6 {[%clk 0:01:04.9]} 20... Qxc6 {[%clk
0:00:51.3]} 21. Qg4+ {[%clk 0:01:04.9]} 21... Ng5 {[%clk 0:00:45.6]} 22. h4
{[%clk 0:00:52.8]} 22... Qb5 {[%clk 0:00:40.1]} 23. hxg5 {[%clk 0:00:48.3]}
23... Bg7 {[%clk 0:00:32.2]} 24. g6 {[%clk 0:00:48.2]} 24... f5 {[%clk
0:00:23.5]} 25. Qe2 {[%clk 0:00:44.8]} 25... Rd8 {[%clk 0:00:20]} 26. Rd3 {[%clk
0:00:32.9]} 26... Re8 {[%clk 0:00:07.7]} 27. a3 {[%clk 0:00:22.2]} 27... f4
{[%clk 0:00:07.9]} 28. Qe4 {[%clk 0:00:18.9]} 28... Qg5 {[%clk 0:00:06.2]} 29.
Rd7 {[%clk 0:00:16.8]} 29... f3 {[%clk 0:00:02.1]} 30. gxf3 {[%clk 0:00:16.1]}
30... Qf6 {[%clk 0:00:01.4]} 31. Rxb7 {[%clk 0:00:15.1]} 31... e5 {[%clk
0:00:01.3]} 32. Ne3 {[%clk 0:00:14.2]} 32... Rf8 {[%clk 0:00:02.2]} 33. Qd5+
{[%clk 0:00:12.4]} 33... Kh8 {[%clk 0:00:01.5]} 34. Qd7 {[%clk 0:00:12.6]} 1-0

[Event "Early-Titled-Tuesday-Blitz-January-16-2024"]
[Site "Chess.com"]
[Date "2024.01.16"]
[Round "7"]
[White "vladgoncharov"]
[Black "Juicy_Fork"]
[Result "1-0"]
[WhiteElo "2587"]
[BlackElo "2422"]
[TimeControl "180+1"]
[EndTime "9:22:17 PST"]
[Termination "vladgoncharov won on time"]

1. d4 {[%clk 0:02:59.6]} 1... Nf6 {[%clk 0:02:58.6]} 2. c4 {[%clk 0:02:57.6]}
2... g6 {[%clk 0:02:58.9]} 3. Nc3 {[%clk 0:02:56.9]} 3... Bg7 {[%clk 0:02:58.5]}
4. Nf3 {[%clk 0:02:54.8]} 4... O-O {[%clk 0:02:55.2]} 5. Bg5 {[%clk 0:02:54.2]}
5... d6 {[%clk 0:02:53.9]} 6. e3 {[%clk 0:02:53.9]} 6... c5 {[%clk 0:02:52.3]}
7. Be2 {[%clk 0:02:53]} 7... Bf5 {[%clk 0:02:48.7]} 8. O-O {[%clk 0:02:49]} 8...
Ne4 {[%clk 0:02:46.5]} 9. Bh4 {[%clk 0:02:42.7]} 9... Nc6 {[%clk 0:02:37.7]} 10.
Nd5 {[%clk 0:02:28.5]} 10... Qd7 {[%clk 0:02:15.9]} 11. Rc1 {[%clk 0:02:20]}
11... Rac8 {[%clk 0:02:00.6]} 12. b3 {[%clk 0:02:18.9]} 12... e6 {[%clk
0:01:54.8]} 13. Nc3 {[%clk 0:01:59.1]} 13... cxd4 {[%clk 0:01:45]} 14. Nxd4
{[%clk 0:01:58]} 14... Nxd4 {[%clk 0:01:16.6]} 15. exd4 {[%clk 0:01:57.1]} 15...
Nxc3 {[%clk 0:00:57.8]} 16. Rxc3 {[%clk 0:01:56.5]} 16... Be4 {[%clk 0:00:55.9]}
17. Qd2 {[%clk 0:01:46.4]} 17... d5 {[%clk 0:00:51]} 18. c5 {[%clk 0:01:43.9]}
18... e5 {[%clk 0:00:48.6]} 19. dxe5 {[%clk 0:01:40.7]} 19... Bxe5 {[%clk
0:00:48.5]} 20. Rcc1 {[%clk 0:01:41.3]} 20... Qc7 {[%clk 0:00:40.4]} 21. Bg3
{[%clk 0:01:39.3]} 21... Rcd8 {[%clk 0:00:32.2]} 22. Rfe1 {[%clk 0:01:26.6]}
22... Bxg3 {[%clk 0:00:22.6]} 23. hxg3 {[%clk 0:01:26.3]} 23... d4 {[%clk
0:00:22.3]} 24. Rc4 {[%clk 0:01:20.8]} 24... Bf5 {[%clk 0:00:02.7]} 25. Rxd4
{[%clk 0:01:15.3]} 25... Rxd4 {[%clk 0:00:03.6]} 26. Qxd4 {[%clk 0:01:14.9]}
26... Rd8 {[%clk 0:00:04.4]} 27. Qc3 {[%clk 0:01:15]} 27... Rc8 {[%clk 0:00:03]}
28. Rc1 {[%clk 0:01:11.8]} 28... Be4 {[%clk 0:00:03.3]} 29. b4 {[%clk
0:01:09.6]} 29... Qc6 {[%clk 0:00:03.5]} 30. f3 {[%clk 0:01:08.8]} 30... Bd5
{[%clk 0:00:03.3]} 31. a3 {[%clk 0:00:51]} 31... b6 {[%clk 0:00:03.5]} 32. Qe5
{[%clk 0:00:47.3]} 32... Qd7 {[%clk 0:00:02.4]} 33. Rd1 {[%clk 0:00:44.2]} 33...
Rd8 {[%clk 0:00:01.7]} 34. Bc4 {[%clk 0:00:36.6]} 34... Qa4 {[%clk 0:00:01.1]}
35. Rxd5 {[%clk 0:00:35.4]} 35... Re8 {[%clk 0:00:01.7]} 36. Qf6 {[%clk
0:00:31.3]} 36... Qxa3 {[%clk 0:00:01.9]} 37. Rd1 {[%clk 0:00:25.9]} 37... Qa4
{[%clk 0:00:01]} 38. Qxf7+ {[%clk 0:00:25]} 1-0

[Event "Early-Titled-Tuesday-Blitz-January-16-2024"]
[Site "Chess.com"]
[Date "2024.01.16"]
[Round "7"]
[White "Roedor"]
[Black "Chiquitita23"]
[Result "0-1"]
[WhiteElo "2391"]
[BlackElo "2261"]
[TimeControl "180+1"]
[EndTime "9:22:17 PST"]
[Termination "Chiquitita23 won by resignation"]

1. d4 {[%clk 0:02:57.3]} 1... Nf6 {[%clk 0:02:57.4]} 2. c4 {[%clk 0:02:55.4]}
2... e6 {[%clk 0:02:57.6]} 3. g3 {[%clk 0:02:55.5]} 3... d5 {[%clk 0:02:57.3]}
4. Bg2 {[%clk 0:02:55.7]} 4... dxc4 {[%clk 0:02:54.9]} 5. Nf3 {[%clk 0:02:55.3]}
5... c6 {[%clk 0:02:54]} 6. Ne5 {[%clk 0:02:54.3]} 6... Bb4+ {[%clk 0:02:51.6]}
7. Bd2 {[%clk 0:02:54.4]} 7... Be7 {[%clk 0:02:50.8]} 8. e3 {[%clk 0:02:47.8]}
8... b5 {[%clk 0:02:50.8]} 9. a4 {[%clk 0:02:41.8]} 9... b4 {[%clk 0:02:46.1]}
10. O-O {[%clk 0:02:20.7]} 10... O-O {[%clk 0:02:41.1]} 11. Nxc4 {[%clk
0:02:15.6]} 11... a5 {[%clk 0:02:33.7]} 12. Ne5 {[%clk 0:02:11.3]} 12... Bb7
{[%clk 0:02:31.7]} 13. Bc1 {[%clk 0:01:55.2]} 13... Qc7 {[%clk 0:02:26.3]} 14.
Nd2 {[%clk 0:01:54.5]} 14... c5 {[%clk 0:02:23.2]} 15. Bxb7 {[%clk 0:01:52.8]}
15... Qxb7 {[%clk 0:02:22.8]} 16. Qf3 {[%clk 0:01:52.6]} 16... Qxf3 {[%clk
0:02:11.1]} 17. Ndxf3 {[%clk 0:01:53.5]} 17... Nbd7 {[%clk 0:02:00.6]} 18. Rd1
{[%clk 0:01:47.2]} 18... cxd4 {[%clk 0:01:50.4]} 19. Nxd7 {[%clk 0:01:45.8]}
19... Nxd7 {[%clk 0:01:49.2]} 20. Nxd4 {[%clk 0:01:44.2]} 20... Bf6 {[%clk
0:01:45.7]} 21. e4 {[%clk 0:01:13.2]} 21... Nc5 {[%clk 0:01:39.3]} 22. Be3
{[%clk 0:01:06.5]} 22... Nxe4 {[%clk 0:01:34.2]} 23. Rac1 {[%clk 0:01:06.4]}
23... Rac8 {[%clk 0:01:21.3]} 24. Rxc8 {[%clk 0:01:01.1]} 24... Rxc8 {[%clk
0:01:19.3]} 25. Kg2 {[%clk 0:00:55.8]} 25... Rd8 {[%clk 0:01:13.5]} 26. Rc1
{[%clk 0:00:47.6]} 26... h6 {[%clk 0:00:58.7]} 27. Nc6 {[%clk 0:00:35.4]} 27...
Rd3 {[%clk 0:00:46]} 28. b3 {[%clk 0:00:25.7]} 28... Rxb3 {[%clk 0:00:33.7]} 29.
Nxa5 {[%clk 0:00:25]} 29... Rb2 {[%clk 0:00:14.5]} 30. Rc8+ {[%clk 0:00:13.6]}
30... Kh7 {[%clk 0:00:14.3]} 31. Rc4 {[%clk 0:00:12.2]} 31... Nc3 {[%clk
0:00:13]} 32. Nc6 {[%clk 0:00:07.3]} 32... Nd5 {[%clk 0:00:12.8]} 33. Bd4 {[%clk
0:00:06.1]} 33... Bxd4 {[%clk 0:00:09.9]} 34. Nxd4 {[%clk 0:00:06.7]} 34... Ne3+
{[%clk 0:00:08.9]} 0-1